Cogmind - Beta 15 @@@ ROGUE MODE // 2025.06.19 @ 22:17:23 Player: 7604 Result: Self-destructed Performance ------------- Evolutions (4) 2000 Regions Visited (7) 1400 Robots Destroyed (52) 260 Value Destroyed (1743) 1743 Prototype IDs (26) 520 Alien Tech Used (0) 0 Bonus (3037) 3037 TOTAL SCORE: 8960 Bonus ------- Follower Combat Kills 394 Delivered SUBCON Basin 2000 Registered with UFD 300 Met Optimus in HQ 500 Friendly Fire -157 Cogmind --------- Core Integrity 125/850 Matter 255/300 Energy 72/100 System Corruption 16% Temperature Cool (0) Movement Treading (160) Location -6/Factory Parts ------- > --- POWER (1) -------- (None) > --- PROPULSION (4) --- Improved Medium Treads > --- UTILITY (8) ------ Advanced Signal Interpreter Target Analyzer Improved Hacking Suite Improved System Shield A0-MCA's Component Scanner Tech Extrapolator > --- WEAPON (2) ------- Heavy Pick > --- INVENTORY (5) ---- EM Shield Power Bank Railgun Hypervelocity Railgun Peak State ------------ > --- POWER ------------ (None) > --- PROPULSION ------- Improved Medium Treads Heavy Siege Treads Improved VSS Leg > --- UTILITY ---------- Scrap Suit Advanced Signal Interpreter Target Analyzer Improved Hacking Suite Improved System Shield A0-MCA's Component Scanner Tech Extrapolator > --- WEAPON ----------- Powered Cannon > --- INVENTORY -------- Power Bank Railgun Hypervelocity Railgun [Rating: 81] Favorites ----------- Power Subdweller Power Source Engine Subdweller Power Source Power Core Light Fission Core Propulsion Light Treads Treads Light Treads Leg Improved VSS Leg Wheel Subdweller Monowheel Utility Huge Storage Unit Device Improved Heat Sink Storage Huge Storage Unit Processor Advanced Signal Interpreter Hackware Improved System Shield Protection Hardened Medium Armor Plating Weapon Subdweller Beam Cannon Energy Gun Subdweller Laser Energy Cannon Subdweller Beam Cannon Ballistic Gun Overtuned Coil Gun Launcher Rocket Array Special Weapon Multitool Piercing Weapon Heavy Pick Build | -11 -10 -10 -9 -9 -6 -6 -6 ------- Run | Yrd Mat Sub Rec Scr Fac Was Fac Slots Evolved 8 | . . . . . 8 . . Power . | . . . . . . . . Propulsion 2 | . . . . . 2 . . Utility 6 | . . . . . 6 . . Weapon . | . . . . . . . . Parts Attached 65 | 1 4 19 5 4 27 2 3 Power 6 | . . 2 . 1 3 . . Engine 3 | . . 2 . . 1 . . Core 3 | . . . . 1 2 . . Reactor . | . . . . . . . . Propulsion 16 | . 2 7 2 . 3 1 1 Treads 8 | . 2 1 2 . 1 1 1 Leg 2 | . . . . . 2 . . Wheel 6 | . . 6 . . . . . Hover . | . . . . . . . . Flight . | . . . . . . . . Utility 24 | 1 2 3 2 1 15 . . Device 11 | 1 1 2 1 . 6 . . Storage 2 | . 1 . 1 . . . . Processor 5 | . . . . . 5 . . Hackware 2 | . . . . . 2 . . Protection 4 | . . 1 . 1 2 . . Artifact . | . . . . . . . . Weapon 19 | . . 7 1 2 6 1 2 Energy Gun 4 | . . 2 . . 2 . . Energy Cannon 5 | . . 3 . . 1 . 1 Ballistic Gun 6 | . . 2 . 2 1 1 . Ballistic Cannon . | . . . . . . . . Launcher 2 | . . . . . 2 . . Special Weapon 1 | . . . 1 . . . . Impact Weapon . | . . . . . . . . Slashing Weapon . | . . . . . . . . Piercing Weapon 1 | . . . . . . . 1 Special Melee Weapon . | . . . . . . . . Unidentified Prototypes 5 | . . 1 . . 4 . . Parts Lost 22 | . . 5 . . 13 . 4 Power 5 | . . 2 . . 3 . . Propulsion 6 | . . 1 . . 4 . 1 Utility 8 | . . 1 . . 6 . 1 Weapon 3 | . . 1 . . . . 2 Highest Loss Streak 6 | . . 3 . . 6 . 3 To Critical Strikes . | . . . . . . . . Average Backups 13 | 6 7 10 10 17 17 4 4 Power . | 1 1 . . . . . . Propulsion 1 | 4 2 1 1 1 . . . Utility 5 | . 2 3 3 8 8 1 1 Weapon 4 | 1 1 4 2 6 6 2 2 Tool/Special . | . . . . . . . . Unused Backups 42 | 6 1 11 . 9 12 . 3 Power 3 | 1 . 1 . 1 . . . Propulsion 5 | 2 1 2 . . . . . Utility 11 | 1 . 1 . 2 5 . 2 Weapon 19 | 2 . 6 . 5 5 . 1 Tool/Special 4 | . . 1 . 1 2 . . Average Slot Usage (%) 94 | . 100 96 91 100 71 64 63 Engine 7 | . 14 11 14 4 . . . Core 4 | . . . . 9 4 4 . Treads 20 | . 27 14 17 28 15 . 8 Wheel 3 | . . 13 2 . . . . Device 11 | . 14 13 13 8 14 6 6 Storage 12 | . 14 14 14 14 4 . . Processor 1 | . . . . . 9 26 25 Protection 2 | . . . . 5 8 . . Energy Gun 1 | . . 3 . . 1 6 2 Energy Cannon 18 | . . 22 27 17 . . 2 Ballistic Gun 6 | . 28 1 . 10 9 . . Peak Build Rating 81 | 7 8 34 34 33 63 66 81 Average Rating 24 | 6 7 23 16 24 53 56 69 On Entrance 28 | 6 7 8 34 16 33 57 66 Naked Turns . | . . . . . . . . Heaviest Build 115 | 14 49 62 102 105 115 14 13 Greatest Support 100 | 20 40 40 40 40 70 70 100 Greatest Overweight (x) 5 | . 1 3 5 2 4 . . Average Overweight (x) 1 | . . 1 2 2 . . . Largest Inventory Capacity 25 | 8 20 20 25 25 25 5 5 Average Capacity 22 | 8 19 20 24 25 21 5 5 Most Carried 25 | 7 10 20 20 25 25 5 5 Average Carried 16 | 6 7 18 11 19 19 4 4 Final Capacity 25 | 8 20 20 25 25 5 5 5 Final Carried 25 | 7 10 20 13 25 5 5 4 Class Distribution -------------------- 50% | Scavenger-Mutant 29% | Mutant 16% | Commander-Mutant 3% | Hacker-Mutant Dominant Class ---------------- Mutant | -10/Materials Mutant | -10/Subcaves Scavenger-Mutant | -9/Recycling Scavenger-Mutant | -9/Scraptown Mutant | -6/Factory Hacker-Mutant | -6/Waste Hacker-Mutant | -6/Factory Resources | -11 -10 -10 -9 -9 -6 -6 -6 ----------- Run | Yrd Mat Sub Rec Scr Fac Was Fac Matter Collected 1829 | 250 150 290 172 40 856 . 71 Remotely . | . . . . . . . . Salvage Created 2195 | 99 218 342 307 . 1121 . 108 Parts 101 | 5 13 17 11 . 51 . 4 Haulers Intercepted 1 | . . . . . 1 . . Recyclers Shooed 2 | 1 . . . . 1 . . Parts Field Recycled . | . . . . . . . . Retrieved Matter . | . . . . . . . . Parts Self-Destructed 15 | . . 15 . . . . . Prevented . | . . . . . . . . Kills | -11 -10 -10 -9 -9 -6 -6 -6 ------- Run | Yrd Mat Sub Rec Scr Fac Was Fac Combat Hostiles Destroyed 31 | . 5 6 4 . 14 . 2 Melee 1 | . . . . . . . 1 Guns 21 | . 5 5 . . 11 . . Cannons 5 | . . 1 4 . . . . AOE 3 | . . . . . 3 . . Classes Destroyed 17 | 2 2 4 3 . 6 . . Worker 3 | . . . . . 3 . . Builder 6 | . . . . . 6 . . Tunneler 2 | 1 . . . . 1 . . Hauler 1 | . . . . . 1 . . Recycler 3 | 1 . . 1 . 1 . . Operator 1 | . 1 . . . . . . Turret 2 | . . 2 . . . . . Watcher 1 | . . . . . 1 . . Swarmer 2 | . . 1 . . 1 . . Grunt 13 | . 5 . 1 . 6 . 1 Brawler 1 | . . . . . 1 . . Duelist 1 | . . . 1 . . . . Sentry 2 | . . . . . 1 . 1 Hunter 7 | . . . 1 . 6 . . Programmer 2 | . . . 1 . 1 . . Artisan 2 | . . 2 . . . . . Subdweller 5 | . . 5 . . . . . Best Kill Streak 7 | 2 2 3 5 . 7 . 1 Combat Bots Only 4 | . 2 2 4 . 4 . 1 Max Kills in Single Turn 3 | 1 1 1 2 . 3 . 1 Gunslinging . | . . . . . . . . Exploded 2 | . . . . . 2 . . Melee 1 | . . . . . . . 1 Uniques/NPCs Destroyed . | . . . . . . . . Combat | -11 -10 -10 -9 -9 -6 -6 -6 -------- Run | Yrd Mat Sub Rec Scr Fac Was Fac Hostile Shots Fired 436 | . 29 56 12 . 255 2 82 Missed 135 | . 3 16 5 . 89 1 21 Hits 301 | . 26 40 7 . 166 1 61 Melee 1 | . . . . . . 1 . Projectile 300 | . 26 40 7 . 166 . 61 Critical Strikes 14 | . . 1 2 . 3 1 7 Part Disruptions 1 | . . . 1 . . . . Damage Taken 5004 | . 309 871 107 . 2753 60 904 Core 900 | . 97 78 . . 574 . 151 Absorbed by Shields . | . . . . . . . . Redirected to Shielding 16 | . . 16 . . . . . Regen/Repaired (Parts) 758 | . . . . 738 10 . 10 Core Remaining (%) 65 | 100 . . . 30 . . . Volleys Fired 186 | 10 24 51 9 . 87 . 5 Largest 2 | 2 2 2 2 . 2 . 1 Hottest 160 | 40 40 160 160 . 112 . 80 Shots Fired 334 | 20 48 90 16 . 155 . 5 Gun 269 | 20 48 47 . . 153 . 1 Cannon 61 | . . 43 14 . . . 4 Launcher 2 | . . . . . 2 . . Special 2 | . . . 2 . . . . Kinetic 230 | 20 48 25 . . 137 . . Thermal 102 | . . 65 16 . 16 . 5 Explosive 2 | . . . . . 2 . . Electromagnetic . | . . . . . . . . Robot Hit Streak 22 | 3 7 22 6 . 9 . 2 Robot Miss Streak 4 | 2 1 2 1 . 4 . 3 Penetration Max 2 | . . . . . 2 . . Secondary Targets 3 | . . . . . 3 . . Max Gunslinging Chain 1 | . . . . . 1 . . Shots Hit Robots 206 | 13 36 49 13 . 89 . 6 Core Hits 104 | 3 13 15 7 . 63 . 3 Critical Kills 6 | . . 1 . . 4 . 1 Critical Parts Destroyed 10 | . . . . . 10 . . Critical Strikes 18 | . . 2 . . 15 . 1 Burn 1 | . . . . . 1 . . Meltdown 1 | . . . . . . . 1 Destroy 16 | . . 2 . . 14 . . Melee Attacks 6 | . . . . . . . 6 Impact . | . . . . . . . . Slashing . | . . . . . . . . Piercing 6 | . . . . . . . 6 Sneak Attacks . | . . . . . . . . Combat Hostiles . | . . . . . . . . Follow-up Attacks . | . . . . . . . . Damage Inflicted 5744 | 131 378 868 363 . 3797 . 207 Guns 3768 | 131 378 613 . . 2626 . 20 Cannons 657 | . . 255 342 . . . 60 Explosions 1147 | . . . . . 1147 . . Melee 116 | . . . . . . . 116 Ramming 47 | . . . 12 . 24 . 11 Kinetic 3117 | 131 378 290 . . 2318 . . Thermal 1974 | . . 578 351 . 965 . 80 Explosive 490 | . . . . . 490 . . Electromagnetic . | . . . . . . . . Impact . | . . . . . . . . Slashing . | . . . . . . . . Piercing 116 | . . . . . . . 116 Highest Corruption 16 | . . . 1 . 2 11 16 Average Corruption 2 | . . . 1 . 1 9 11 Corruption Purged . | . . . . . . . . Corruption Blocked . | . . . . . . . . Effects 31 | . . . 17 . 1 3 10 Message Errors 7 | . . . 6 . . . 1 Matter Fused 9 | . . . 3 . 1 . 5 Heat Flow Errors 5 | . . . 3 . . . 2 Energy Discharges 7 | . . . 5 . . 1 1 Parts Rejected 1 | . . . . . . . 1 Data Loss (major) 1 | . . . . . . 1 . Alerts 1 | . . . . . . 1 . Overload Shots . | . . . . . . . . Overflow Damage 179 | . . 16 . . 163 . . Projectiles 16 | . . 16 . . . . . Explosions 163 | . . . . . 163 . . Melee . | . . . . . . . . Knockbacks 1 | . . . . . 1 . . Impact 1 | . . . . . 1 . . Kinetic . | . . . . . . . . Secondary . | . . . . . . . . Self-Inflicted Damage 59 | . . . 2 . 57 . . Shots 2 | . . . . . 2 . . Rammed 11 | . . . 2 . 1 . 8 Targets Rammed 13 | . . . 2 . 3 . 8 Kicked 2 | . . . . . 2 . . Crushed . | . . . . . . . . Highest Temperature 479 | . 6 72 479 . 249 . 247 Average Temperature 84 | . 6 24 188 . 67 . 103 Received Heat Transfer 1098 | . 174 144 36 . 525 . 219 Effects 8 | . . . 6 . 2 . . Energy Bleed 1 | . . . 1 . . . . Interference 4 | . . . 2 . 2 . . Matter Decay 1 | . . . 1 . . . . Damage (major) 2 | . . . 2 . . . . Siege Activations . | . . . . . . . . Martial Activations . | . . . . . . . . Shielding Activations . | . . . . . . . . Robots Disrupted . | . . . . . . . . Combat Hostiles . | . . . . . . . . Robots Corrupted . | . . . . . . . . Combat Hostiles . | . . . . . . . . Parts Fried . | . . . . . . . . Impact Corruptions . | . . . . . . . . Robots Melted 1 | . . . . . . . 1 Combat Hostiles 1 | . . . . . . . 1 Parts Melted 5 | . . 2 1 . 1 . 1 Heat Transferred 2827 | . . 833 494 . 1450 . 50 Parts Sabotaged . | . . . . . . . . Parts Stolen . | . . . . . . . . Parts Stripped . | . . . . . . . . Power Chain Reactions . | . . . . . . . . Alert | -11 -10 -10 -9 -9 -6 -6 -6 ------- Run | Yrd Mat Sub Rec Scr Fac Was Fac Maximum Alert Level 2 | . . . . . 2 . . Low Security (%) 95 | 100 100 . 100 . 78 100 100 Level 1 4 | . . . . . 19 . . Level 2 . | . . . . . 1 . . Level 3 . | . . . . . . . . Level 4 . | . . . . . . . . Level 5 . | . . . . . . . . High Security . | . . . . . . . . Max Security . | . . . . . . . . Peak Influence 420 | 5 72 . 92 . 420 89 41 Initial 89 | . . . 3 . . 89 41 Average 39 | 1 14 . 15 . 122 73 9 Influence Increases 1913 | 10 136 306 434 . 971 . 56 Destroy 0b10 Robot/C 820 | . 100 200 180 . 300 . 40 Destroy 0b10 Robot/NC 95 | 10 5 . 15 . 65 . . Destroy Leader 104 | . 20 10 . . 64 . 10 Allied During Kill 81 | . . 51 14 . 16 . . Successful Hack 27 | . 11 . 13 . . . 3 Select Force Hacks 210 | . . . 210 . . . . Disable Machine 150 | . . . . . 150 . . Destroy Structure 126 | . . . 2 . 121 . 3 Lose Combat Pursuer 300 | . . 45 . . 255 . . Influence Decreases 1913 | 10 136 299 441 . 716 196 115 Entered New Map 188 | . . . 4 . . 166 18 Time Decay 1196 | 10 136 141 397 . 396 30 86 Search Patrol Dispatched 150 | . . . . . 150 . . Lost Part 141 | . . . . . 130 . 11 Lost Ally 238 | . . 158 40 . 40 . . Squads Dispatched 12 | . 3 . . . 8 . 1 Investigation 3 | . 1 . . . 1 . 1 Extermination 1 | . . . . . 1 . . Reinforcement 8 | . 2 . . . 6 . . Assault . | . . . . . . . . Garrison . | . . . . . . . . Intercept . | . . . . . . . . Searches Triggered 1 | . . . . . 1 . . Construction Impeded 4 | . . . . . 4 . . Haulers Reinforced 1 | . . . . . 1 . . Active Scanning Responses . | . . . . . . . . Cargo Convoy Interrupts 1 | . . . . . 1 . . Stealth | -11 -10 -10 -9 -9 -6 -6 -6 --------- Run | Yrd Mat Sub Rec Scr Fac Was Fac Distress Signals 4 | . 2 . . . 2 . . Communications Jammed . | . . . . . . . . Distress Signals . | . . . . . . . . Times Spotted 84 | . 11 22 8 . 35 5 3 Peak Tracking Total 11 | . 4 5 6 . 11 5 2 Tactical Retreats 8 | . . 2 . . 6 . . Traps | -11 -10 -10 -9 -9 -6 -6 -6 ------- Run | Yrd Mat Sub Rec Scr Fac Was Fac Traps Triggered 2 | . . . . . 1 . 1 Indirectly . | . . . . . . . . Trap Hack Attempts . | . . . . . . . . Triggered . | . . . . . . . . Disarmed . | . . . . . . . . Reprogrammed . | . . . . . . . . Reused . | . . . . . . . . Traps Extracted . | . . . . . . . . Installed . | . . . . . . . . Triggered . | . . . . . . . . Machines | -11 -10 -10 -9 -9 -6 -6 -6 ---------- Run | Yrd Mat Sub Rec Scr Fac Was Fac Machines Disabled 13 | . 1 2 . . 10 . . Max in Single Turn 4 | . 1 1 . . 4 . . Machines Repaired . | . . . . . . . . Machines Dismantled . | . . . . . . . . Machines Sabotaged . | . . . . . . . . Overloaded Fab Kills . | . . . . . . . . Hacking | -11 -10 -10 -9 -9 -6 -6 -6 --------- Run | Yrd Mat Sub Rec Scr Fac Was Fac Machines Accessed 27 | . 1 3 13 3 4 . 3 Terminals 10 | . 1 . 6 . 2 . 1 Fabricators 2 | . . . . . 1 . 1 Repair Stations . | . . . . . . . . Recycling Units 8 | . . . 7 . 1 . . Scanalyzers . | . . . . . . . . Garrison Access 1 | . . . . . . . 1 Total Hacks 64 | . 9 3 36 4 6 . 6 Successful 38 | . 3 3 25 4 1 . 2 Failed 26 | . 6 . 11 . 5 . 4 Catastrophic 4 | . 2 . . . 2 . . Database Lockouts . | . . . . . . . . Manual 34 | . 9 . 19 . 4 . 2 Terminals 31 | . 9 . 18 . 2 . 2 Fabricators 5 | . . . . . 2 . 3 Repair Stations . | . . . . . . . . Recycling Units 20 | . . . 18 . 2 . . Scanalyzers . | . . . . . . . . Garrison Access 1 | . . . . . . . 1 Terminal Hacks 14 | . 1 3 6 4 . . . Record 3 | . . . . 3 . . . Part Schematic 1 | . . . 1 . . . . Robot Schematic 2 | . . . 2 . . . . Robot Analysis 2 | . 1 . 1 . . . . Prototype ID Bank 1 | . . . 1 . . . . Open Door 1 | . . 1 . . . . . Terminal Index 1 | . . . 1 . . . . Proto ID Catalog 2 | . . 1 . 1 . . . Release Object 1 | . . 1 . . . . . Fabricator Hacks 3 | . . . . . 1 . 2 Network Status 1 | . . . . . 1 . . Load Schematic 1 | . . . . . . . 1 Build 1 | . . . . . . . 1 Repair Station Hacks . | . . . . . . . . Recycling Unit Hacks 6 | . . . 6 . . . . Retrieve Components 6 | . . . 6 . . . . Scanalyzer . | . . . . . . . . Garrison Access Hacks . | . . . . . . . . Unauthorized Hacks 15 | . 2 . 13 . . . . Terminals 8 | . 2 . 6 . . . . Botnet 2 | . 1 . 1 . . . . Operators 1 | . 1 . . . . . . Skim 5 | . . . 5 . . . . Fabricators . | . . . . . . . . Repair Stations . | . . . . . . . . Recycling Units 7 | . . . 7 . . . . Tunnel 7 | . . . 7 . . . . Scanalyzers . | . . . . . . . . Garrison Access . | . . . . . . . . Data Cores Recovered . | . . . . . . . . Used . | . . . . . . . . Hacking Detections 17 | . 1 . 9 . 4 . 3 Full Trace Events 3 | . 1 . . . 1 . 1 Feedback Events 1 | . . . . . 1 . . Corruption 1 | . . . . . 1 . . Feedback Blocked . | . . . . . . . . Robot Schematics Acquired 2 | . . . 2 . . . . Robots Built . | . . . . . . . . Authchips . | . . . . . . . . Time . | . . . . . . . . Total Robot Build Rating . | . . . . . . . . Part Schematics Acquired 6 | . . . 1 . 2 1 2 Parts Built 1 | . . . . . . . 1 Authchips . | . . . . . . . . Time 84 | . . . . . . . 84 Total Part Build Rating 4 | . . . . . . . 4 Parts Repaired . | . . . . . . . . Time . | . . . . . . . . Parts Recycled . | . . . . . . . . Recycled Matter . | . . . . . . . . Retrieved Matter . | . . . . . . . . Retrieved Components 26 | . . . 26 . . . . Parts Scanalyzed . | . . . . . . . . Part Schematics Acquired . | . . . . . . . . Parts Damaged . | . . . . . . . . Bothacking | -11 -10 -10 -9 -9 -6 -6 -6 ------------ Run | Yrd Mat Sub Rec Scr Fac Was Fac Used RIF Installer . | . . . . . . . . Robots Hacked . | . . . . . . . . Non-combat . | . . . . . . . . Combat . | . . . . . . . . Robot Hacks Applied . | . . . . . . . . Relay Couplers Released . | . . . . . . . . Fabnet Peak Effective % . | . . . . . . . . Robots Rewired 5 | . . . 5 . . . . Allies Hacked . | . . . . . . . . Hacks Repelled . | . . . . . . . . Allies | -11 -10 -10 -9 -9 -6 -6 -6 -------- Run | Yrd Mat Sub Rec Scr Fac Was Fac Total Allies 18 | . . 13 5 . . . . Largest Group 7 | . . 7 5 5 5 . . Highest-Rated Group 133 | . . 133 77 77 77 . . Highest-Rated Ally 21 | . . 19 21 21 21 . . Total Orders . | . . . . . . . . Ally Attacks 92 | . . 62 17 . 13 . . Total Damage 1485 | . . 908 331 . 246 . . Kills 18 | . . 11 6 . 1 . . Allies Corrupted . | . . . . . . . . Allies Melted . | . . . . . . . . Intel | -11 -10 -10 -9 -9 -6 -6 -6 ------- Run | Yrd Mat Sub Rec Scr Fac Was Fac Active Infowar (turns) 1807 | 21 694 362 . . 730 . . Optics 252 | . . 252 . . . . . Sensors 678 | . . . . . 678 . . Seismic 879 | 21 694 110 . . 54 . . Robot Analysis Total 2 | . 1 . 1 . . . . Derelict Logs Recovered 6 | . . 1 . 5 . . . Drone Launches . | . . . . . . . . Drone Recoveries . | . . . . . . . . Exploration | -11 -10 -10 -9 -9 -6 -6 -6 ------------- Run | Yrd Mat Sub Rec Scr Fac Was Fac Turns Passed 14755 | 71 773 3641 2734 6019 1136 79 302 Spaces Moved 5742 | 34 280 2039 718 1868 574 78 151 Core 236 | . . . . . 236 . . Treads 3763 | . 273 699 554 1868 271 3 95 Legs 239 | 34 7 . . . 67 75 56 Wheels 1504 | . . 1340 164 . . . . Hover . | . . . . . . . . Flight . | . . . . . . . . Fastest Speed 50 | 120 120 117 120 320 50 90 90 Average Speed 240 | 120 237 164 366 320 148 93 143 Slowest Speed 560 | 120 240 240 560 320 400 180 180 Overloaded Moves . | . . . . . . . . Propulsion Burnouts . | . . . . . . . . Robots Hopped . | . . . . . . . . Potential Cave-ins . | . . . . . . . . Cave-ins Triggered . | . . . . . . . . Exploration Rate (%) 52 | 4 37 96 99 90 18 70 6 Regions Visited 7 Branch Regions 3 Pre-discovered Areas 13 | . . 1 11 1 . . . Known Exits Taken . | . . . . . . . . Unknown Exits Taken 5 | 1 1 1 1 1 . . . Scrap Searched 14 | . . 10 . 4 . . . Spaces Dug 11 | . . 2 . . 9 . . Terrain Destroyed 202 | . . 6 1 . 192 . 3 Melee . | . . . . . . . . Projectile 88 | . . 6 1 . 78 . 3 AOE 114 | . . . . . 114 . . Terrain Rammed . | . . . . . . . . Walls Destroyed . | . . . . . . . . Machines Disabled . | . . . . . . . . Actions | -11 -10 -10 -9 -9 -6 -6 -6 --------- Run | Yrd Mat Sub Rec Scr Fac Was Fac Total 6421 | 45 343 2238 804 1919 772 85 215 Wait 221 | . 23 77 35 5 45 2 34 Move 5736 | 33 279 2038 717 1867 574 77 151 Hop . | . . . . . . . . Pick Up 68 | 1 4 21 4 25 10 1 2 Fast Attach 32 | 1 . 6 3 1 15 2 4 Attach 23 | . . 5 . 2 14 . 2 Detach 19 | . . 2 3 3 9 1 1 Swap 32 | . 11 10 3 1 7 . . Drop 58 | . 2 28 1 15 8 2 2 Fire 186 | 10 24 51 9 . 87 . 5 Melee 6 | . . . . . . . 6 Ram 1 | . . . 1 . . . . Kick 2 | . . . . . 2 . . Crush 10 | . . . 1 . 1 . 8 Escape Stasis . | . . . . . . . . Rewire 27 | . . . 27 . . . . Trap . | . . . . . . . . Miscellaneous . | . . . . . . . . Route ------- -11/Scrapyard -10/Materials (discovered 2 exits: [*Min] / *Sub) -10/Subcaves (discovered 4 exits: *Mat x2 / *Rec / *Scr) -9/Recycling (discovered 2 exits: [*Fac] / *Scr) -9/Scraptown (discovered 2 exits: *Fac x2) -6/Factory -6/Waste -6/Factory History --------- Turn | Location | Event 1 | -11/Scrapyard | Discovered new exit (range 3) 72 | -11/Scrapyard | Entered Materials 316 | -10/Materials | Build established: Mutant 424 | -10/Materials | Discovered new exit (range 9) 829 | -10/Materials | Discovered new exit (range 8) 845 | -10/Materials | Entered Subcaves 846 | -10/Subcaves | Approached by a straggling Scientist 1011 | -10/Subcaves | A Subdweller sparked back to life 1011 | -10/Subcaves | A Subdweller sparked back to life 1017 | -10/Subcaves | Core integrity fell below 50% 1049 | -10/Subcaves | Lost 3 parts (1p1n1u) 1049 | -10/Subcaves | Found Prototype Device 1065 | -10/Subcaves | A Subdweller sparked back to life 1198 | -10/Subcaves | Shifting Twisted Machinery released Battle Rifle 1230 | -10/Subcaves | Shifting Twisted Machinery released Sub. Beam Cannon 1324 | -10/Subcaves | Visited triangular shrine 1339 | -10/Subcaves | Found Prototype Device 1340 | -10/Subcaves | Identified V3-11A's Pendant 1345 | -10/Subcaves | Befriended Subdweller 1390 | -10/Subcaves | Disturbed a concealed Subdweller 1390 | -10/Subcaves | Befriended Subdweller 1404 | -10/Subcaves | Befriended Subdweller 1531 | -10/Subcaves | Scientist uncovered a shortcut to Scraptown 1732 | -10/Subcaves | Befriended Subdweller 1937 | -10/Subcaves | Visited 4L-MR0's lab 1945 | -10/Subcaves | Identified Power Bank 1958 | -10/Subcaves | Found Powered Cannon 2122 | -10/Subcaves | Befriended Subdweller 2392 | -10/Subcaves | Befriended Subdweller 2392 | -10/Subcaves | Befriended Subdweller 2621 | -10/Subcaves | Identified exit to Materials 2732 | -10/Subcaves | Found SUBCON Basin 2762 | -10/Subcaves | Shifting Twisted Machinery released Sub. Power Source 2765 | -10/Subcaves | Shifting Twisted Machinery released Mak. Light Armor Plating 2857 | -10/Subcaves | Befriended Subdweller 3203 | -10/Subcaves | Discovered new exit (range 12) 3240 | -10/Subcaves | Lost 7 allies 3288 | -10/Subcaves | Approached by friendly Subdweller 3312 | -10/Subcaves | A swath of the cavern ceiling suddenly collapsed 3358 | -10/Subcaves | A swath of the cavern ceiling suddenly collapsed 3577 | -10/Subcaves | Disturbed a concealed Subdweller 3577 | -10/Subcaves | Befriended Subdweller 3654 | -10/Subcaves | Learned location of Zion (-7) 3654 | -10/Subcaves | Met a Zionite searching for "candidates" 3670 | -10/Subcaves | Build established: Scavenger-Mutant 3705 | -10/Subcaves | Shifting Twisted Machinery released Battle Cannon 3716 | -10/Subcaves | Shifting Twisted Machinery released Battle Rifle 3981 | -10/Subcaves | Build established: Mutant 4017 | -10/Subcaves | Befriended Subdweller 4022 | -10/Subcaves | Befriended Subdweller 4042 | -10/Subcaves | Befriended Subdweller 4050 | -10/Subcaves | Discovered exit to Materials (range 11) 4405 | -10/Subcaves | Build established: Scavenger-Mutant 4486 | -10/Subcaves | Entered Recycling 4486 | -9/Recycling | Accompanied by 3 allies 4562 | -9/Recycling | Scanned before Scraplab entrance 4579 | -9/Recycling | Entered Scraplab 4945 | -9/Recycling | P-60 Hacker assimilated allied VA-K2Y(R) 5642 | -9/Recycling | Discovered new exit (range 15) 6566 | -9/Recycling | Learned Materials emergency access door positions 6634 | -9/Recycling | Learned Storage security intel 6713 | -9/Recycling | Learned 2 Materials zone layouts 7212 | -9/Recycling | Discovered new exit (range 2) 7220 | -9/Recycling | Entered Scraptown 7220 | -9/Scraptown | Accompanied by 5 allies 7220 | -9/Scraptown | System corruption cleaned by C-Scrubber 7541 | -9/Scraptown | Scanned Subdweller tech in exchange for log data 7548 | -9/Scraptown | Learned location of Quarantine (-2) 7551 | -9/Scraptown | Learned Research emergency access door positions 7554 | -9/Scraptown | Learned Factory garrison access intel 7557 | -9/Scraptown | Learned location of 1 exit from Research 7561 | -9/Scraptown | Learned 8 Factory zone layouts 8269 | -9/Scraptown | Delivered V3-11A's Pendant to T0-NE2 in exchange for information 8546 | -9/Scraptown | Visited Assassins FH 8581 | -9/Scraptown | Visited Fellowship of the Rings 8645 | -9/Scraptown | Visited Cyclists 8690 | -9/Scraptown | Visited UFD Registry 8690 | -9/Scraptown | Registered with UFD as "Slugfunk" 8805 | -9/Scraptown | Visited Curators Association 8924 | -9/Scraptown | Visited Science Guys 9020 | -9/Scraptown | Visited A0-MCA Data Center 9090 | -9/Scraptown | Visited Scrap Suit Storage 9132 | -9/Scraptown | Visited Supply Room 9214 | -9/Scraptown | Visited Modified Component R&D 9423 | -9/Scraptown | Found Scrap Suit 9495 | -9/Scraptown | Visited Science Testing Area 9549 | -9/Scraptown | Visited Derelict Rescue Squad 10505 | -9/Scraptown | Discovered new exit (range 11) 10789 | -9/Scraptown | Entered Cyclist Reading Room 10882 | -9/Scraptown | Visited Symbiants 10930 | -9/Scraptown | Visited TADAMA 10968 | -9/Scraptown | Visited CR-KLE's Repair Center 10998 | -9/Scraptown | CR-KLE repaired 5 parts 11290 | -9/Scraptown | Build established: Commander-Mutant 11505 | -9/Scraptown | Visited Observation Area 12534 | -9/Scraptown | Given a B- rating by A0-MCA 12545 | -9/Scraptown | Found A0-MCA's Component Scanner 12620 | -9/Scraptown | Found Scrap Suit 12861 | -9/Scraptown | Discovered new exit (range 5) 13063 | -9/Scraptown | Met Optimus 13063 | -9/Scraptown | Accepted into 0bPrime 13239 | -9/Scraptown | Entered Factory 13239 | -6/Factory | Accompanied by 5 allies 13239 | -6/Factory | Evolved 8 slots: Propulsion x2, Utility x6 13241 | -6/Factory | Loaded intel: 4 garrison access locations 13685 | -6/Factory | Build established: Mutant 13690 | -6/Factory | Found Prototype Launcher 13690 | -6/Factory | Identified Rocket Array 14029 | -6/Factory | Lost 3 parts (3u) 14080 | -6/Factory | Lost 3 parts (1p1n1u) 14175 | -6/Factory | Cargo convoy interrupted 14186 | -6/Factory | Lost 6 parts (1p3n2u) 14223 | -6/Factory | Core integrity fell below 50% 14246 | -6/Factory | Tech Extrapolator generated special schematic: Deep Structural Scanner 14289 | -6/Factory | Search patrols dispatched 14375 | -6/Factory | Manually triggered Chute Trap 14375 | -6/Factory | Sucked down chute 14375 | -6/Factory | Entered Waste 14388 | -6/Waste | Spotted C-40 Crusher 14390 | -6/Waste | EMP discharged 14390 | -6/Waste | System corruption reached 10% 14398 | -6/Waste | Spotted C-40 Crusher 14409 | -6/Waste | Spotted C-40 Crusher 14412 | -6/Waste | Spotted C-40 Crusher 14414 | -6/Waste | Spotted C-40 Crusher 14419 | -6/Waste | Spotted C-40 Crusher 14424 | -6/Waste | Crushed by Compactor (0 parts destroyed, 1 dropped) 14436 | -6/Waste | Discovered new exit (range 11) 14445 | -6/Waste | Identified exit to Factory 14454 | -6/Waste | Entered Factory 14591 | -6/Factory | Attached Powered Cannon, gained temporary slot: Power 14658 | -6/Factory | Build established: Hacker-Mutant 14698 | -6/Factory | Fabricated Deep Structural Scanner? 14743 | -6/Factory | Core integrity fell below 20% 14756 | -6/Factory | Self-destructed Last Messages --------------- 14722_ Slammed into G-50 Soldier. 14724_ U-05 Engineer builds a Wall. 14724_ Slammed into G-50 Soldier. 14726_ Hvy. Siege Treads destroyed. 14727_ Slammed into G-50 Soldier. 14736_ Powered Cannon destroyed. 14737_ K-01 Serf cleans the Fusion Modulator. 14737_ Temporary Power slot lost. 14738_ Critical hit (Burn: +37). 14738_ K-01 Serf cleans the Subcomponent Replicator. 14741_ K-01 Serf cleans the Fusion Modulator. 14753_ G-50 Soldier destroyed. 14754_ System corrupted: Energy discharge (-24). 14754_ K-01 Serf cleans the Fusion Modulator. 14755_ R-10 Processor collects Lgt. Angular Momentum Engine. 14755_ Scrap Suit destroyed. 14756_ K-01 Serf collects debris. Map ----- +----------------------------------------------------+ | ?????????????????????????????????????????????????? | | ?????????????????????????????????????????????????? | | ?????????????????????????????????????????????????? | | ?????????????????????????????????????????????????? | | ?????????????????????????????????????????????????? | | ?????????????????????????????????????????????????? | | ?????????????????????????????????????????????????? | | ?????????????????????????????????????????????????? | | ?????????????????????????????????????????????????? | | ?????????????????????????????????????????????????? | | ?????????????????????????????????????????????????? | | ????????????????????######???????????????????????? | | ??????????????????? ???????????????????????? | | ???????????????????? ???????????????????????? | | ????????????????# """A "???????#???????????????? | | ????????????????# """k "??#???? ???????????????? | | ????????????????# """ ""?# ??? ??????#???????? | | ????????????????# k ""?# """ ????? #???????? | | ????????????????# T"## """ ???? #???????? | | ????????????????# ""## """ """ #???????? | | ????????????????# "" ""## #???????? | | ????????????????# "" ""##[[ """ !#???????? | | ????????????????# """ ""##[! """ #???????? | | ????????????????# """ "## """ #???????? | | ????????????????# """ #? #???????? | | ?????????? # R =@ #??? ?????????? | | ??????????# ???# kp % #????? ???????????? | | ??????????# #####/#############+#########????? | | ??????????# #????? | | ??????????# ###### | | ??????????# | | ??????????# ###### | | ??????????# #????? | | ??????????# ################# ##### #????? | | ??????????# ??????????????#?# #???# ###### | | ??????????# ?????????????????# #???# | | ??????????# ^ ??????????????????# #???# | | ????????? ???????????????????# #???# | | ?????????## ????????????????????# #???# | | ??????????#?????????????????????# #???# | | ????????????????????????????????# #???####+####### | | ????????????????????????????????# #??????????????? | | ????????????????????????????????? ???????????????? | | ????????????????????????????????? ???????????????? | | ????????????????????????????????? ???????????????? | | ????????????????????????????????? ???????????????? | | ????????????????????????????????? ???????????????? | | ????????????????????????????????? ???????????????? | | ????????????????????????????????? ???????????????? | | ?????????????????????????????????????????????????? | +----------------------------------------------------+ Best States ------------- Heat Dissipation 51 Energy Generation 18 Energy Capacity 250 Matter Stores 300 Matter Capacity 300 Sight Range 21 Robot Scan Range 15 Terrain Scan Density 10 Armor Coverage 525 Core Shielding 20 Phase Shifting 5 Evasion (%) 57 Target Analysis 5 Recoil Reduction 3 Offensive Hacking 12 Defensive Hacking 12 Item Schematics ----------------- Plasma Cutter | -9/Recycling | Hacked Deep Structural Scanner | -6/Factory | Extrapolated Beamcaster | -6/Factory | Extrapolated Mak. Coolant Network | -6/Waste | Extrapolated Mak. Hacking Suite | -6/Factory | Extrapolated Mak. Power Source | -6/Factory | Extrapolated Robot Schematics ------------------ G-34 Mercenary | -9/Recycling | Hacked M-13 Machinist | -9/Recycling | Hacked Fabricated ------------ Deep Structural Scanner | x1 | -6/Factory Repaired ---------- Nothing Alien Tech Used ----------------- None Achievements -------------- None Challenges ------------ None Game ------ Seed HackingConstructInjector Manual? 0 Play Time 01:02:38 Cumulative 462.9 hours Start 2025.06.19 @ 21:13:26 End 2025.06.19 @ 22:17:23 Sessions 1 Manual Loads 0 Difficulty Rogue Special Mode None Game No. 244 Rogue 181 Adventurer 63 Explorer 0 Win Type - Total 9 Types 8/0/0/1/0/0/0/0/0/0 Lore% 89 Gallery% 80 Achievement% 66 Wizard Run 0 Options --------- Layout 1 ASCII 0 Keyboard 1 Movement Numpad Keybinds 0 Fullscreen 1 Font 24/Terminus Map View 50x35 Zoom Use 0% Tactical HUD 1 Map Filters NONE Filters NONE Steam 1 RUN: 49ba9d0d-439d-4555-81fe-c178296c89e6